Cogmind - Beta 13 @@@ ROGUE MODE // 2024.04.08 @ 23:46:57 Player: SovietPaperclip Result: Self-destructed Performance ------------- Evolutions (2) 1000 Regions Visited (4) 800 Robots Destroyed (50) 250 Value Destroyed (1705) 1705 Prototype IDs (1) 20 Alien Tech Used (0) 0 Bonus (0) 0 TOTAL SCORE: 3775 Bonus ------- None Cogmind --------- Core Integrity 159/550 Matter 181/300 Energy 280/280 System Corruption 0% Temperature Cool (22) Movement Core (600) Ox11 Location -8/Storage Parts ------- > --- POWER (1) -------- Cooled Ion Engine > --- PROPULSION (4) --- (None) > --- UTILITY (4) ------ Large Storage Unit Improved Signal Interpreter > --- WEAPON (2) ------- Gauss Rifle Gauss Rifle > --- INVENTORY (15) --- Light Nuclear Core Carbon-fiber Leg Armored Wheel Armored Wheel Improved Heat Sink Compact Matter Pod (27) Reflective Plating High-powered Shotgun Heavy Mace Peak State ------------ > --- POWER ------------ Cooled Ion Engine > --- PROPULSION ------- Carbon-fiber Leg Improved Carbon-fiber Leg Improved Carbon-fiber Leg Improved Carbon-fiber Leg > --- UTILITY ---------- Improved Heat Sink Large Storage Unit Improved Signal Interpreter Medium Armor Plating > --- WEAPON ----------- Gauss Rifle Gauss Rifle > --- INVENTORY -------- Light Nuclear Core Carbon-fiber Leg Armored Wheel Armored Wheel Improved Heat Sink Compact Matter Pod Reflective Plating High-powered Shotgun Gauss Rifle Gauss Rifle Heavy Mace [Rating: 38] Favorites ----------- Power Nuclear Core Engine Ion Engine Power Core Nuclear Core Propulsion Aluminum Leg Leg Aluminum Leg Wheel Armored Wheel Utility Large Storage Unit Device Trap Scanner Storage Large Storage Unit Processor Improved Signal Interpreter Protection Medium Armor Plating Weapon Gauss Rifle Energy Cannon Particle Cannon Ballistic Gun Gauss Rifle Ballistic Cannon Assault Cannon Launcher Grenade Launcher Build | -11 -10 -9 -8 -8 ------- Run | Yrd Mat Mat Mat Sto Slots Evolved 4 | . . 2 2 . Power . | . . . . . Propulsion 2 | . . 1 1 . Utility 2 | . . 1 1 . Weapon . | . . . . . Parts Attached 51 | 6 6 8 23 8 Power 5 | 1 . 1 2 1 Engine 3 | 1 . 1 . 1 Core 2 | . . . 2 . Reactor . | . . . . . Propulsion 14 | 2 . 1 8 3 Treads . | . . . . . Leg 13 | 2 . 1 7 3 Wheel 1 | . . . 1 . Hover . | . . . . . Flight . | . . . . . Utility 11 | 1 2 2 5 1 Device 3 | . 1 . 1 1 Storage 2 | 1 1 . . . Processor 2 | . . 1 1 . Hackware . | . . . . . Protection 4 | . . 1 3 . Artifact . | . . . . . Weapon 21 | 2 4 4 8 3 Energy Gun . | . . . . . Energy Cannon 2 | . . . 2 . Ballistic Gun 13 | 2 2 2 4 3 Ballistic Cannon 1 | . . . 1 . Launcher 5 | . 2 2 1 . Special Weapon . | . . . . . Impact Weapon . | . . . . . Slashing Weapon . | . . . . . Piercing Weapon . | . . . . . Special Melee Weapon . | . . . . . Unidentified Prototypes 1 | . . . . 1 Parts Lost 21 | . . 1 7 13 Power 1 | . . . 1 . Propulsion 10 | . . . 3 7 Utility 5 | . . 1 1 3 Weapon 5 | . . . 2 3 Highest Loss Streak 9 | . . 1 4 9 To Critical Strikes . | . . . . . Average Slot Usage (%) 88 | . 97 82 87 93 Engine 6 | . 14 11 1 8 Core 3 | . . . 6 . Leg 31 | . 28 33 32 31 Device 5 | . 11 2 5 8 Storage 10 | . 14 11 9 9 Processor 5 | . . . 9 9 Protection 4 | . . 2 5 7 Ballistic Gun 17 | . 26 21 13 17 Ballistic Cannon 1 | . . . 3 . Naked Turns . | . . . . . Heaviest Build 45 | 14 30 39 44 45 Greatest Support 69 | 20 20 30 56 69 Greatest Overweight (x) 2 | 2 1 1 2 . Average Overweight (x) . | . . . . . Largest Inventory Capacity 15 | 8 15 15 15 15 Average Capacity 14 | 7 9 15 15 15 Most Carried 15 | 3 5 11 15 15 Average Carried 9 | 1 2 6 11 12 Final Capacity 15 | 8 15 15 15 15 Final Carried 15 | 1 4 8 15 9 Class Distribution -------------------- 51% | Scavenger-Mutant 48% | Mutant Dominant Class ---------------- Mutant | -10/Materials Mutant | -9/Materials Scavenger-Mutant | -8/Materials Mutant | -8/Storage Resources | -11 -10 -9 -8 -8 ----------- Run | Yrd Mat Mat Mat Sto Matter Collected 1555 | 211 171 254 393 526 Remotely . | . . . . . Salvage Created 1679 | . 238 393 354 694 Parts 116 | . 21 33 28 34 Haulers Intercepted 2 | . . 1 1 . Recyclers Shooed 2 | . . . . 2 Parts Field Recycled . | . . . . . Retrieved Matter . | . . . . . Parts Self-Destructed . | . . . . . Prevented . | . . . . . Kills | -11 -10 -9 -8 -8 ------- Run | Yrd Mat Mat Mat Sto Combat Hostiles Destroyed 41 | . 7 8 14 12 Melee 1 | . . . 1 . Guns 32 | . 3 6 11 12 Cannons 1 | . . . 1 . AOE 7 | . 4 2 1 . Classes Destroyed 9 | . 2 4 2 1 Worker 1 | . . 1 . . Hauler 2 | . . 1 1 . Recycler 1 | . . . . 1 Operator 1 | . . 1 . . Watcher 4 | . 1 1 1 1 Swarmer 6 | . . . 6 . Grunt 27 | . 7 6 4 10 Sentry 5 | . . 2 2 1 Hunter 3 | . . . 2 1 Best Kill Streak 7 | . 3 3 4 7 Combat Bots Only 4 | . 3 3 4 4 Max Kills in Single Turn 3 | . 3 3 1 2 Gunslinging . | . . . . . Exploded 2 | . 2 2 1 . Melee 1 | . . . 1 . Uniques/NPCs Destroyed . | . . . . . Combat | -11 -10 -9 -8 -8 -------- Run | Yrd Mat Mat Mat Sto Hostile Shots Fired 332 | . 11 34 160 127 Missed 89 | . 6 10 45 28 Damage Taken 3355 | . 64 318 1423 1550 Core 482 | . . 91 194 197 Absorbed by Shields . | . . . . . Ignored by Resistances 20 | . . . 20 . Core Remaining (%) 92 | 100 100 77 . . Volleys Fired 154 | . 14 35 57 48 Largest 2 | . 2 2 2 2 Hottest 93 | . 50 53 93 56 Shots Fired 289 | . 28 69 98 94 Gun 259 | . 25 65 75 94 Cannon 18 | . . . 18 . Launcher 12 | . 3 4 5 . Special . | . . . . . Kinetic 270 | . 25 65 86 94 Thermal 7 | . . . 7 . Explosive 12 | . 3 4 5 . Electromagnetic . | . . . . . Robot Hit Streak 9 | . 9 5 6 8 Robot Miss Streak 6 | . 3 4 5 6 Penetration Max 1 | . . . . 1 Secondary Targets 4 | . . . . 4 Max Gunslinging Chain 1 | . . . . 1 Shots Hit Robots 155 | . 14 35 46 60 Core Hits 96 | . 14 21 35 26 Critical Kills 2 | . . . . 2 Critical Parts Destroyed 1 | . . . 1 . Critical Strikes 3 | . . . 1 2 Destroy 3 | . . . 1 2 Melee Attacks . | . . . . . Impact . | . . . . . Slashing . | . . . . . Piercing . | . . . . . Sneak Attacks . | . . . . . Combat Hostiles . | . . . . . Follow-up Attacks . | . . . . . Damage Inflicted 4058 | . 456 747 1380 1475 Guns 2914 | . 205 465 769 1475 Cannons 129 | . . . 129 . Explosions 852 | . 251 282 319 . Melee . | . . . . . Ramming 163 | . . . 163 . Kinetic 2982 | . 205 465 837 1475 Thermal 61 | . . . 61 . Explosive 852 | . 251 282 319 . Electromagnetic . | . . . . . Impact . | . . . . . Slashing . | . . . . . Piercing . | . . . . . Highest Corruption . | . . . . . Average Corruption . | . . . . . Corruption Purged . | . . . . . Corruption Blocked . | . . . . . Overload Shots . | . . . . . Overflow Damage 19 | . . . 19 . Projectiles . | . . . . . Explosions 7 | . . . 7 . Melee 12 | . . . 12 . Knockbacks . | . . . . . Impact . | . . . . . Kinetic . | . . . . . Secondary . | . . . . . Self-Inflicted Damage . | . . . . . Shots . | . . . . . Rammed . | . . . . . Targets Rammed 33 | . . . 33 . Kicked 33 | . . . 33 . Crushed . | . . . . . Highest Temperature 75 | . 6 4 75 29 Average Temperature 15 | . 3 2 20 8 Received Heat Transfer 1398 | . 36 138 342 882 Siege Activations . | . . . . . Robots Corrupted . | . . . . . Combat Hostiles . | . . . . . Parts Fried . | . . . . . Impact Corruptions 1 | . . . 1 . Robots Melted . | . . . . . Combat Hostiles . | . . . . . Parts Melted . | . . . . . Heat Transferred 111 | . . . 111 . Parts Sabotaged . | . . . . . Parts Stolen . | . . . . . Parts Stripped . | . . . . . Power Chain Reactions . | . . . . . Alert | -11 -10 -9 -8 -8 ------- Run | Yrd Mat Mat Mat Sto Peak Influence 426 | . 229 395 426 374 Initial 166 | . . 96 166 118 Average 256 | . 120 228 316 260 Maximum Alert Level 2 | . 1 1 2 1 Low Security (%) 28 | 100 56 54 6 25 Level 1 62 | . 43 45 73 74 Level 2 9 | . . . 19 . Level 3 . | . . . . . Level 4 . | . . . . . Level 5 . | . . . . . High Security . | . . . . . Max Security . | . . . . . Squads Dispatched 11 | . 3 2 2 4 Investigation 3 | . 1 1 . 1 Extermination . | . . . . . Reinforcement 7 | . 2 1 2 2 Assault . | . . . . . Garrison 1 | . . . . 1 Intercept . | . . . . . Searches Triggered . | . . . . . Construction Impeded . | . . . . . Haulers Reinforced . | . . . . . Active Scanning Responses . | . . . . . Cargo Convoy Interrupts . | . . . . . Stealth | -11 -10 -9 -8 -8 --------- Run | Yrd Mat Mat Mat Sto Distress Signals 6 | . 1 . 4 1 Communications Jammed . | . . . . . Distress Signals . | . . . . . Times Spotted 71 | . 11 12 26 22 Peak Tracking Total 7 | . 4 4 7 7 Tactical Retreats 3 | . . 1 1 1 Traps | -11 -10 -9 -8 -8 ------- Run | Yrd Mat Mat Mat Sto Traps Triggered 2 | . 1 1 . . Indirectly . | . . . . . Trap Hack Attempts . | . . . . . Triggered . | . . . . . Disarmed . | . . . . . Reprogrammed . | . . . . . Reused . | . . . . . Traps Extracted . | . . . . . Installed . | . . . . . Triggered . | . . . . . Machines | -11 -10 -9 -8 -8 ---------- Run | Yrd Mat Mat Mat Sto Machines Disabled 2 | . . . 1 1 Max in Single Turn 1 | . . . 1 1 Machines Repaired . | . . . . . Machines Dismantled . | . . . . . Machines Sabotaged . | . . . . . Overloaded Fab Kills . | . . . . . Hacking | -11 -10 -9 -8 -8 --------- Run | Yrd Mat Mat Mat Sto Machines Accessed 6 | . . 2 3 1 Terminals 6 | . . 2 3 1 Fabricators . | . . . . . Repair Stations . | . . . . . Recycling Units . | . . . . . Scanalyzers . | . . . . . Garrison Access . | . . . . . Total Hacks 7 | . . 2 3 2 Successful 5 | . . 1 3 1 Failed 2 | . . 1 . 1 Catastrophic 1 | . . . . 1 Database Lockouts . | . . . . . Manual 2 | . . . 2 . Terminals 7 | . . 2 3 2 Fabricators . | . . . . . Repair Stations . | . . . . . Recycling Units . | . . . . . Scanalyzers . | . . . . . Garrison Access . | . . . . . Terminal Hacks 3 | . . 1 1 1 Open Door 1 | . . . . 1 Alert Level 2 | . . 1 1 . Fabricator Hacks . | . . . . . Repair Station Hacks . | . . . . . Recycling Unit Hacks . | . . . . . Scanalyzer . | . . . . . Garrison Access Hacks . | . . . . . Unauthorized Hacks 2 | . . . 2 . Terminals 2 | . . . 2 . Botnet 2 | . . . 2 . Fabricators . | . . . . . Repair Stations . | . . . . . Recycling Units . | . . . . . Scanalyzers . | . . . . . Garrison Access . | . . . . . Data Cores Recovered . | . . . . . Used . | . . . . . Hacking Detections 4 | . . 1 2 1 Full Trace Events 1 | . . . . 1 Feedback Events . | . . . . . Feedback Blocked . | . . . . . Robot Schematics Acquired . | . . . . . Robots Built . | . . . . . Authchips . | . . . . . Time . | . . . . . Total Robot Build Rating . | . . . . . Part Schematics Acquired . | . . . . . Parts Built . | . . . . . Authchips . | . . . . . Time . | . . . . . Total Part Build Rating . | . . . . . Parts Repaired . | . . . . . Time . | . . . . . Parts Recycled . | . . . . . Recycled Matter . | . . . . . Retrieved Matter . | . . . . . Retrieved Components . | . . . . . Parts Scanalyzed . | . . . . . Part Schematics Acquired . | . . . . . Parts Damaged . | . . . . . Bothacking | -11 -10 -9 -8 -8 ------------ Run | Yrd Mat Mat Mat Sto Used RIF Installer . | . . . . . Robots Hacked . | . . . . . Non-combat . | . . . . . Combat . | . . . . . Robot Hacks Applied . | . . . . . Relay Couplers Released . | . . . . . Fabnet Peak Effective % . | . . . . . Robots Rewired . | . . . . . Allies Hacked . | . . . . . Hacks Repelled . | . . . . . Allies | -11 -10 -9 -8 -8 -------- Run | Yrd Mat Mat Mat Sto Total Allies . | . . . . . Largest Group . | . . . . . Highest-Rated Group . | . . . . . Highest-Rated Ally . | . . . . . Total Orders . | . . . . . Ally Attacks . | . . . . . Total Damage . | . . . . . Kills . | . . . . . Allies Corrupted . | . . . . . Allies Melted . | . . . . . Intel | -11 -10 -9 -8 -8 ------- Run | Yrd Mat Mat Mat Sto Robot Analysis Total . | . . . . . Derelict Logs Recovered . | . . . . . Drone Launches . | . . . . . Drone Recoveries . | . . . . . Exploration | -11 -10 -9 -8 -8 ------------- Run | Yrd Mat Mat Mat Sto Turns Passed 1977 | 56 268 391 1001 261 Spaces Moved 996 | 42 154 198 521 81 Core 16 | 16 . . . . Treads . | . . . . . Legs 968 | 26 154 198 509 81 Wheels 12 | . . . 12 . Hover . | . . . . . Flight . | . . . . . Fastest Speed 50 | 50 120 120 120 120 Average Speed 131 | 105 131 132 135 120 Slowest Speed 260 | 150 190 190 260 120 Overloaded Moves . | . . . . . Propulsion Burnouts . | . . . . . Robots Hopped . | . . . . . Cave-ins Triggered . | . . . . . Exploration Rate (%) 24 | 3 42 20 41 14 Regions Visited 4 Branch Regions 1 Pre-discovered Areas . | . . . . . Known Exits Taken 2 | . . 1 1 . Unknown Exits Taken 2 | 1 1 . . . Scrap Searched . | . . . . . Spaces Dug . | . . . . . Terrain Destroyed 90 | . 29 34 27 . Melee . | . . . . . Projectile 4 | . . . 4 . AOE 86 | . 29 34 23 . Terrain Rammed . | . . . . . Walls Destroyed . | . . . . . Machines Disabled . | . . . . . Actions | -11 -10 -9 -8 -8 --------- Run | Yrd Mat Mat Mat Sto Total 1361 | 54 189 258 708 152 Wait 59 | . 10 7 36 6 Move 992 | 41 153 197 520 81 Hop . | . . . . . Pick Up 54 | 7 5 9 28 5 Fast Attach . | . . . . . Attach 27 | 6 1 3 10 7 Detach . | . . . . . Swap 24 | . 5 5 13 1 Drop 18 | . 1 2 11 4 Fire 154 | . 14 35 57 48 Melee . | . . . . . Ram . | . . . . . Kick 33 | . . . 33 . Crush . | . . . . . Escape Stasis . | . . . . . Rewire . | . . . . . Trap . | . . . . . Miscellaneous . | . . . . . Route ------- -11/Scrapyard -10/Materials (discovered 2 exits: *Mat x2) -9/Materials -8/Materials (discovered 3 exits: *Fac x2 / *Sto) -8/Storage History --------- Turn | Location | Event 7 | -11/Scrapyard | Discovered new exit (range 15) 57 | -11/Scrapyard | Entered Materials 230 | -10/Materials | Discovered new exit (range 7) 296 | -10/Materials | Discovered new exit (range 16) 317 | -10/Materials | Build established: Mutant 325 | -10/Materials | Entered another Materials area 325 | -9/Materials | Evolved 2 slots: Propulsion x1, Utility x1 704 | -9/Materials | Discovered new exit (range 7) 716 | -9/Materials | Identified exit to Materials 716 | -9/Materials | Entered another Materials area 716 | -8/Materials | Evolved 2 slots: Propulsion x1, Utility x1 892 | -8/Materials | Lost 4 parts (2n1u1w) 933 | -8/Materials | Lost 3 parts (1p1n1w) 1093 | -8/Materials | Discovered new exit (range 10) 1103 | -8/Materials | Identified exit to Factory 1223 | -8/Materials | Build established: Scavenger-Mutant 1257 | -8/Materials | Discovered exit to Factory (range 12) 1598 | -8/Materials | Discovered new exit (range 4) 1716 | -8/Materials | Identified exit to Storage 1717 | -8/Materials | Entered Storage 1918 | -8/Storage | Garrison activated, responded to threat 1935 | -8/Storage | Core integrity fell below 50% 1978 | -8/Storage | Self-destructed Last Messages --------------- 01954_ Carbon-fiber Leg destroyed. 01955_ R-06 Scavenger collects Imp. Heat Sink. 01955_ G-47 Trooper destroyed. 01955_ Switching to secondary target: Y-45 Defender. 01955_ Slug penetrates Y-45 Defender. 01955_ W-25 Informer destroyed. 01956_ K-01 Serf collects debris. 01958_ R-06 Scavenger collects Aluminum Leg. 01958_ Slug penetrates Y-45 Defender. 01959_ K-01 Serf collects debris. 01961_ Slug penetrates G-47 Trooper. 01961_ K-01 Serf destroyed. 01962_ Imp. Carbon-fiber Leg destroyed. 01963_ Critical hit (Burn: +37). 01963_ Imp. Carbon-fiber Leg destroyed. 01964_ Slug penetrates G-47 Trooper. 01965_ Gauss Rifle destroyed. 01973_ Imp. Heat Sink destroyed. 01973_ Critical hit (Burn: +37). Map ----- +----------------------------------------------------+ | | | | | | | | | ?????????????????????????????????????????? | | ?????????????????????????????????????????? | | ?????????????????????????????????????????? | | ?????????????????????????????????????????? | | ????##############################???????? | | ????# =!= ??????? | | ????# =!!! ??????? | | ????# [= * ??????? | | ????#########+######+#######?????????????? | | ??????????#= !### #???????????????? | | ??????????# [ T## #???????????????? | | ??????????# *### #???????????????? | | ??????????#* *#?# #???????????????? | | ??????????#* *#?# """" #???????????????? | | ??????????#* *#?# """" #???????????????? | | ??????????#* *#?# """" #???????????????? | | ??????????#####?# """" #???????????????? | | ????????????????# ![[ #???????????????? | | ???????????##???####+#####???????????????? | | ??????????## ####### #???????????????????? | | ??????????# ===g#m### # #?????????????? | | ??????????# !*@YY^*! #?????????????? | | ??????????# "T[g#g%^ #?????????????? | | ??????????# """%# !! #?????????????? | | ??????????##########^ !! ??????????? | | ??????????????????? ! + ???????? | | ??????????????????? # ????????? | | ??????????????????? #?????????? | | ??????????????????? ????????? | | ???????????????????## ##+##????????? | | ?????????????????????+##+##+#?? ?????????? | | ???????????????????????? ? ????????????? | | ????????????????????????""?? #???????????? | | ?????????????????????????????????????????? | | ?????????????????????????????????????????? | | ?????????????????????????????????????????? | | ?????????????????????????????????????????? | | ?????????????????????????????????????????? | | ?????????????????????????????????????????? | | ?????????????????????????????????????????? | | ?????????????????????????????????????????? | | ?????????????????????????????????????????? | | ?????????????????????????????????????????? | | ?????????????????????????????????????????? | | ?????????????????????????????????????????? | | ?????????????????????????????????????????? | +----------------------------------------------------+ Best States ------------- Heat Dissipation 45 Energy Generation 14 Energy Capacity 280 Matter Stores 300 Matter Capacity 300 Sight Range 16 Robot Scan Range 14 Terrain Scan Density 10 Armor Coverage 225 Resistance: TH 10 Resistance: EM 15 Evasion (%) 55 Authchip Count 1 Item Schematics ----------------- None Robot Schematics ------------------ None Fabricated ------------ Nothing Alien Tech Used ----------------- None Achievements -------------- None Challenges ------------ None Game ------ Seed LobotomyCoilTriangulator Manual? 0 Play Time 00:25:29 Cumulative 60.8 hours Start 2024.04.08 @ 23:25:15 End 2024.04.08 @ 23:46:57 Sessions 1 Manual Loads 0 Difficulty Rogue Special Mode None Game No. 76 Rogue 76 Adventurer 0 Explorer 0 Win Type - Total 1 Types 1/0/0/0/0/0/0/0/0 Lore% 34 Gallery% 36 Achievement% 38 Wizard Run 0 Options --------- Layout 1 ASCII 0 Keyboard 0 Movement Mouse Keybinds 0 Fullscreen 2 Font 32/Smallcaps Map View 50x40 Zoom Use 0% Tactical HUD 1 Map Filters NONE Filters NONE Steam 1 RUN: 601681e4-cf23-4ff3-ba01-eb4a5ffe55fd